bitfinex-derivatives/quotes_SOLF0:USTF0_20250923
["timestamp","ask_amount","ask_price","bid_price","bid_amount"]
[1758596514101,4.2124,213.46,213.39,499.28]
[1758596514296,65.5291,213.45,213.39,354.02]
[1758596514504,65.5328,213.44,213.35,145.16]
[1758596514804,7.1,213.45,213.35,145.16]
[1758596515908,7.1,213.51,213.36,7.82]
[1758596516300,65.518,213.49,213.36,7.82]
[1758596516502,4.2126,213.45,213.36,7.82]
[1758596517013,4.212,213.48,213.36,7.82]
[1758596517206,7.1,213.51,213.36,73.3761]
[1758596517406,65.5218,213.48,213.27,7.82]
[1758596517609,65.5443,213.4,213.28,62.68]
[1758596517908,72.6497,213.38,213.27,7.82]
[1758596518110,65.5551,213.37,213.26,146.0]
[1758596518304,69.7708,213.36,213.26,146.0]
[1758596518812,7.1,213.38,213.26,153.82]
[1758596519013,9.80663291,213.42,213.26,153.82]
[1758596519014,65.5359,213.43,213.26,153.82]
[1758596519402,69.7488,213.43,213.26,153.82]
[1758596519803,4.2129,213.43,213.27,7.82]
[1758596520110,69.7479,213.43,213.27,153.54]
[1758596520312,65.5541,213.37,213.27,7.82]
[1758596520514,7.1,213.39,213.28,145.54]
[1758596520704,11.3137,213.39,213.28,145.54]
[1758596520909,65.5528,213.38,213.28,145.54]
[1758596521110,65.5532,213.37,213.27,7.82]
[1758596521311,4.2143,213.37,213.27,7.82]
[1758596521516,7.1,213.39,213.28,145.5]
[1758596522016,4.2139,213.38,213.27,7.82]
[1758596522314,4.2139,213.38,213.28,145.38]
[1758596523116,4.2139,213.38,213.27,7.82]
[1758596523319,65.5721,213.31,213.21,7.42]
[1758596523511,65.5842,213.27,213.15,7.42]
[1758596523711,7.13,213.25,213.16,145.72]
[1758596523914,7.13,213.37,213.18,7.42]
[1758596524109,65.5601,213.35,213.2,7.42]
[1758596525011,65.5601,213.35,213.21,145.7]
[1758596525318,65.5386,213.42,213.23,7.42]
[1758596525514,65.5386,213.42,213.24,145.64]
[1758596525713,65.5386,213.42,213.25,145.6]
[1758596525912,65.5386,213.42,213.26,7.42]
[1758596526813,69.7518,213.42,213.27,145.52]
[1758596527014,69.7518,213.42,213.28,145.3]
[1758596527218,7.13,213.43,213.28,145.3]
[1758596527517,7.13,213.43,213.29,7.42]
[1758596527716,65.5535,213.37,213.29,145.18]
[1758596527917,65.5656,213.33,213.22,7.42]
[1758596528225,65.5781,213.29,213.18,354.24]
[1758596528416,65.5781,213.29,213.18,499.54]
[1758596528617,65.5901,213.25,213.18,354.24]
[1758596528917,7.13,213.21,213.09,361.68]
[1758596529118,7.13,213.21,213.1,145.22]
[1758596529416,72.7113,213.28,213.1,145.22]
[1758596529615,65.598,213.23,213.09,361.68]
[1758596529811,65.5997,213.22,213.1,145.2]
[1758596530012,4.2176,213.2,213.09,361.68]
[1758596530217,65.6332,213.11,212.98,7.42]
[1758596530520,7.13,213.13,212.99,145.04]
[1758596530721,72.7388,213.19,213.01,7.42]
[1758596531122,65.613,213.18,213.01,7.42]
[1758596531322,4.2188,213.13,213.01,7.42]
[1758596531620,65.615,213.17,213.02,145.52]
[1758596531816,7.13,213.19,213.02,145.52]
[1758596532123,65.6122,213.18,213.02,145.52]
[1758596532327,69.8331,213.17,213.03,145.32]
[1758596532624,4.2182,213.17,213.04,145.34]
[1758596532818,7.13,213.19,213.05,7.42]
[1758596533916,7.13,213.19,213.06,122.66]
[1758596534121,7.13,213.19,213.05,7.42]
[1758596534319,65.6116,213.18,213.06,88.78]
[1758596534527,7.13,213.19,213.06,88.78]
[1758596534921,65.612,213.18,213.06,88.78]
[1758596535123,76.45641099,213.13,212.97,7.42]
[1758596535324,65.6302,213.12,212.98,131.1]
[1758596535530,4.2194,213.11,212.98,131.1]
[1758596535934,73.4428,213.08,212.97,7.42]
[1758596536132,73.4428,213.08,212.97,152.34]
[1758596536429,65.6492,213.06,212.96,144.92]
[1758596536626,3.69791099,213.05,212.9,361.96]
[1758596536824,40.54,213.04,212.96,144.78]
[1758596537134,40.54,213.04,212.93,144.72]
[1758596538529,40.54,213.04,212.94,7.68]
[1758596538830,40.54,213.04,212.95,144.74]
[1758596540430,40.54,213.04,212.96,144.32]
[1758596541238,40.54,213.04,212.99,7.68]
[1758596541627,40.54,213.04,213.0,358.8414]
[1758596541835,40.54,213.04,213.01,7.68]
[1758596542035,40.54,213.04,213.03,7.68]
[1758596542434,37.03701215,213.19,213.03,8.14]
[1758596542638,7.8,213.21,213.03,7.68]
[1758596543232,4.2175,213.2,213.04,4.2205]
[1758596543429,38.09372596,213.26,213.07,65.6444]
[1758596543735,65.6037,213.21,213.0,420.2845]
[1758596543944,65.6156,213.17,213.0,354.62]
[1758596544139,7.8,213.16,213.01,143.9]
[1758596544339,73.4181,213.16,213.02,143.92]
[1758596544538,65.622,213.15,213.02,143.92]
[1758596544739,69.8497,213.12,213.02,143.92]
[1758596544936,7.8,213.12,213.03,143.94]
[1758596545343,65.6394,213.09,212.96,121.37212375]
[1758596545638,7.8,213.08,212.97,143.84]
[1758596545843,43.44,213.14,212.97,143.84]
[1758596546043,43.44,213.14,212.95,5.89129173]
[1758596546346,43.44,213.14,212.98,143.82]
[1758596546842,65.6364,213.1,212.99,143.78]
[1758596547041,65.6364,213.1,213.0,143.78]
[1758596547244,4.22,213.08,212.93,4.2227]
[1758596547633,4.22,213.08,212.92,354.64]
[1758596547838,4.22,213.08,212.94,143.62]
[1758596548340,4.22,213.08,212.95,143.5]
[1758596548341,69.8628,213.08,212.95,143.5]
[1758596548544,4.2203,213.06,212.96,143.44]
[1758596548746,4.2203,213.06,212.92,354.64]
[1758596548942,4.2211,213.02,212.92,354.64]
[1758596549141,4.2211,213.02,212.93,143.3]
[1758596549443,7.8,213.06,212.93,143.3]
[1758596549839,73.4277,213.13,212.94,65.6856]
[1758596550041,7.8,213.1,212.93,208.988]
[1758596550240,7.8,213.1,212.94,208.9254]
[1758596550545,7.8,213.1,212.95,4.2223]
[1758596551042,7.8,213.1,212.95,65.6825]
[1758596551246,43.44,213.14,212.96,214.65079173]
[1758596551443,43.44,213.14,212.98,65.6729]
[1758596551843,43.44,213.14,213.01,4.2211]
[1758596552147,43.44,213.14,212.97,65.6763]
[1758596552342,43.44,213.14,213.0,4.2213]
[1758596552642,43.44,213.14,213.01,142.86]
[1758596552949,43.44,213.14,213.05,65.6512]
[1758596553246,36.10700254,213.14,213.11,65.6327]
[1758596553450,7.24,213.28,213.12,501.7989]
[1758596553739,65.5841,213.27,213.12,354.72]
[1758596553945,7.24,213.28,213.12,354.72]
[1758596554248,7.24,213.28,213.13,208.566]
[1758596554449,11.456,213.28,213.14,142.9]
[1758596554947,65.5595,213.35,213.17,4.2179]
[1758596555142,65.5632,213.34,213.17,4.2179]
[1758596555343,7.24,213.28,213.18,142.78]
[1758596555549,7.24,213.28,213.19,142.74]
[1758596555746,4.2162,213.27,213.2,142.72]
[1758596555945,4.2162,213.27,213.2,142.62]
[1758596556352,65.5907,213.25,213.2,142.62]
[1758596556547,7.24,213.24,213.18,142.54]
[1758596556851,7.24,213.24,213.08,4.2198]
[1758596557046,7.24,213.39,213.24,65.5927]
[1758596557246,7.24,213.39,213.22,65.5967]
[1758596557247,1.1722501,213.38,213.26,65.5871]
[1758596557448,7.24,213.45,213.31,65.5705]
[1758596557654,22.62,213.44,213.32,149.9749]
[1758596557845,22.62,213.44,213.32,4.2149]
[1758596558146,22.62,213.44,213.33,145.74]
[1758596559053,22.62,213.44,213.3,4.2154]
[1758596559253,22.62,213.44,213.31,145.42]
[1758596559850,22.62,213.44,213.32,145.34]
[1758596560149,22.62,213.44,213.35,65.5588]
[1758596561048,22.62,213.44,213.37,69.7671]
[1758596561453,22.62,213.44,213.37,4.2139]
[1758596561755,22.62,213.44,213.4,4.2135]
[1758596561957,22.62,213.44,213.41,144.92]
[1758596562254,12.17889726,213.58,213.42,4.213]
[1758596562452,12.17889726,213.58,213.41,144.92]
[1758596562656,4.2106,213.55,213.42,144.74]
[1758596562856,73.45829726,213.58,213.4,354.48]
[1758596563148,73.45829726,213.58,213.41,144.7]
[1758596563351,7.24,213.57,213.42,148.9131]
[1758596563948,22.6,213.56,213.4,354.48]
[1758596564149,22.6,213.56,213.43,144.46]
[1758596564452,22.6,213.56,213.43,65.5339]
[1758596564655,22.6,213.56,213.44,144.3]
[1758596564852,22.6,213.56,213.45,144.3]
[1758596565153,22.6,213.56,213.46,144.22]
[1758596565852,22.6,213.56,213.47,144.06]
[1758596566254,92.3057,213.56,213.4,354.48]
[1758596566454,7.24,213.55,213.41,143.88]
[1758596567043,69.7122,213.54,213.41,143.88]
[1758596567249,4.2108,213.54,213.41,143.88]
[1758596568855,7.24,213.55,213.41,143.88]
[1758596569151,22.6,213.56,213.43,65.5332]
[1758596569750,22.6,213.56,213.47,65.5219]
[1758596569951,22.6,213.56,213.46,65.524]
[1758596569952,22.6,213.56,213.48,143.18]
[1758596570952,22.6,213.56,213.49,4.2117]
[1758596571158,22.6,213.56,213.49,69.7271]
[1758596572058,22.6,213.56,213.49,4.2117]
[1758596572851,22.6,213.56,213.49,69.7279]
[1758596573058,22.6,213.56,213.51,4.2112]
[1758596573260,22.6,213.56,213.51,69.721]
[1758596573461,22.6,213.56,213.51,4.2112]
[1758596573956,22.6,213.56,213.53,4.2108]
[1758596574163,22.6,213.56,213.54,142.32]
[1758596574164,15.3301,213.56,213.54,142.32]
[1758596574358,7.24,213.71,213.56,65.4946]
[1758596574660,7.24,213.71,213.57,69.7016]
[1758596575557,7.24,213.71,213.59,4.2096]
[1758596575758,7.24,213.71,213.6,142.0]
[1758596577268,7.24,213.76,213.61,65.4793]
[1758596577666,7.24,213.76,213.63,4.2088]
[1758596577963,7.24,213.76,213.63,69.6819]
[1758596578865,7.24,213.76,213.63,4.2088]
[1758596579061,7.24,213.76,213.65,4.2085]
[1758596579367,7.24,213.76,213.6,147.89129173]
[1758596579368,4.2066,213.75,213.66,141.2]
[1758596579564,4.2066,213.75,213.56,65.494]
[1758596579756,4.2066,213.75,213.58,4.2098]
[1758596579961,7.24,213.76,213.59,65.4853]
[1758596580165,7.24,213.76,213.63,4.2089]
[1758596580363,7.24,213.76,213.65,65.4665]
[1758596580564,65.3946,213.89,213.65,65.4665]
[1758596580565,7.8,213.83,213.7,65.4514]
[1758596580762,7.8,213.83,213.71,145.2072]
[1758596581066,7.8,213.83,213.71,4.2072]
[1758596581463,7.8,213.83,213.7,353.92]
[1758596581767,7.8,213.83,213.71,141.02]
[1758596581963,7.8,213.83,213.7,353.92]
[1758596582266,7.8,213.81,213.71,140.92]
[1758596582669,12.0056,213.81,213.71,140.92]
[1758596582868,73.2183,213.81,213.72,140.96]
[1758596583067,7.8,213.81,213.72,140.96]
[1758596583264,4.2059,213.79,213.7,353.92]
[1758596583460,65.4163,213.82,213.7,353.92]
[1758596583461,7.8,213.76,213.7,353.92]
[1758596583771,4.2067,213.75,213.7,353.92]
[1758596583961,7.8,213.74,213.6,4.2094]
[1758596584164,65.4502,213.71,213.5,65.513]
[1758596584367,7.8,213.68,213.49,65.5159]
[1758596584566,7.8,213.68,213.51,65.5096]
[1758596584768,4.209,213.63,213.46,10.10349173]
[1758596584967,4.209,213.63,213.44,187.83144864]
[1758596584968,65.4795,213.61,213.44,122.30064864]
[1758596585465,65.4764,213.62,213.44,122.30064864]
[1758596585466,73.2888,213.58,213.44,122.30064864]
[1758596585672,65.4952,213.56,213.44,122.30064864]
[1758596585873,7.8,213.58,213.44,122.30064864]
[1758596586370,65.4735,213.63,213.44,122.30064864]
[1758596586574,65.4704,213.64,213.44,126.51324864]
[1758596586575,4.2097,213.6,213.44,126.51324864]
[1758596586771,7.8,213.62,213.45,65.5283]
[1758596586968,7.8,213.62,213.45,65.5284]
[1758596587168,7.8,213.62,213.49,65.516]
[1758596587367,7.8,213.62,213.5,65.5128]
[1758596587568,7.8,213.62,213.49,4.2116]
[1758596587866,7.8,213.62,213.46,71.41549173]
[1758596588366,7.8,213.62,213.44,187.83214864]
[1758596588367,65.483,213.6,213.44,122.30064864]
[1758596588572,7.8,213.59,213.44,122.30064864]
[1758596588875,7.8,213.59,213.44,126.51324864]
[1758596589070,7.8,213.59,213.45,65.5282]
[1758596589270,7.8,213.59,213.44,122.30064864]
[1758596589472,65.4887,213.58,213.44,122.30064864]
[1758596589769,65.493,213.57,213.44,122.30064864]
[1758596590173,4.2105,213.56,213.44,122.30064864]
[1758596590369,4.2105,213.56,213.35,79.5383]
[1758596590370,65.5139,213.5,213.3,65.5742]
[1758596590572,7.8,213.47,213.3,65.5736]
[1758596590771,7.8,213.47,213.3,69.789]
[1758596591071,73.3227,213.47,213.27,65.5833]
[1758596591271,7.8,213.43,213.24,65.5925]
[1758596591477,4.2131,213.42,213.24,65.5925]
[1758596591676,69.7521,213.42,213.22,69.8165]
[1758596591976,4.2136,213.4,213.22,4.2169]
[1758596592173,4.2136,213.4,213.22,69.8153]
[1758596592372,7.66,213.41,213.22,69.8153]
[1758596592373,7.66,213.41,213.25,4.2164]
[1758596592878,7.66,213.41,213.25,69.8066]
[1758596593072,7.66,213.41,213.22,65.5984]
[1758596593073,7.66,213.41,213.23,65.5952]
[1758596593276,7.66,213.41,213.26,65.5858]
[1758596593679,7.66,213.41,213.27,69.7997]
[1758596593978,7.66,213.49,213.35,65.5569]
[1758596594174,7.66,213.49,213.36,69.7703]
[1758596594673,7.66,213.55,213.4,65.5436]
[1758596595078,7.66,213.55,213.4,69.7569]
[1758596595270,65.4982,213.55,213.34,65.5626]
[1758596595471,65.4982,213.55,213.35,65.5594]
[1758596595675,7.66,213.54,213.35,65.5594]
[1758596596772,65.5049,213.53,213.3,5.89129173]
[1758596597070,7.66,213.49,213.29,65.5778]
[1758596597272,7.66,213.46,213.27,65.5835]
[1758596597477,7.66,213.46,213.28,69.7963]
[1758596597880,7.66,213.42,213.25,4.2165]
[1758596598883,77.4112,213.42,213.25,4.2165]
[1758596599077,73.2077,213.39,213.21,69.8166]
[1758596599477,7.66,213.35,213.17,4.2179]
[1758596599784,7.66,213.35,213.21,65.6014]
[1758596600083,7.66,213.35,213.17,65.6144]
[1758596600284,7.66,213.35,213.12,71.52099173]
[1758596600285,7.66,213.35,213.18,65.6117]
[1758596600483,73.2198,213.35,213.16,65.6177]
[1758596600781,7.66,213.35,213.18,69.829]
[1758596600981,7.66,213.35,213.17,65.6143]
[1758596601174,7.66,213.35,213.2,65.6055]
[1758596601379,7.66,213.35,213.2,4.2173]
[1758596601581,7.66,213.35,213.23,65.5964]
[1758596601985,7.66,213.35,213.21,65.6013]
[1758596602285,7.66,213.35,213.19,65.6079]
[1758596602485,7.66,213.35,213.21,4.2172]
[1758596603389,7.66,213.35,213.23,69.813]
[1758596603585,7.66,213.35,213.25,65.5896]
[1758596604092,7.66,213.35,213.21,65.6011]
[1758596604289,7.66,213.35,213.22,65.5978]
[1758596604678,7.66,213.35,213.18,3.6930599]
[1758596604889,7.66,213.35,213.16,65.6175]
[1758596604890,65.5657,213.33,213.14,65.6224]
[1758596605084,11.3530599,213.31,213.15,4.2184]
[1758596605389,7.66,213.29,213.15,4.2184]
[1758596606183,7.66,213.29,213.17,4.2179]
[1758596607393,65.5574,213.36,213.12,3.6930599]
[1758596607394,7.66,213.37,213.24,69.2860599]
[1758596607687,7.66,213.37,213.24,3.6930599]
[1758596607891,7.66,213.37,213.22,7.9099599]
[1758596608090,7.66,213.37,213.25,65.5899]
[1758596608689,7.66,213.37,213.26,4.2161]
[1758596609487,7.66,213.35,213.16,65.6168]
[1758596609688,7.66,213.35,213.23,65.5963]
[1758596609888,7.66,213.35,213.23,4.2168]
[1758596610684,7.66,213.35,213.2,7.9103599]
[1758596610889,7.66,213.35,213.18,69.3039599]
[1758596611501,7.24,213.33,213.19,4.2176]
[1758596611800,7.24,213.3,213.14,3.6930599]
[1758596611997,4.2157,213.29,213.15,4.2184]
[1758596612394,4.2162,213.27,213.14,3.6930599]
[1758596612600,65.5847,213.27,213.04,65.6537]
[1758596612800,65.5912,213.25,213.07,3.6930599]
[1758596613002,7.24,213.18,213.03,4.2207]
[1758596613201,7.24,213.18,213.03,69.3503599]
[1758596613497,7.24,213.18,213.07,4.2199]
[1758596613800,7.24,213.27,213.11,3.6930599]
[1758596614001,7.24,213.27,213.13,4.2188]
[1758596614306,65.5535,213.37,213.19,3.6930599]
[1758596614504,4.2148,213.34,213.19,3.6930599]
[1758596614799,7.24,213.31,213.13,3.6930599]
[1758596614996,7.24,213.29,213.13,3.6930599]
[1758596615192,7.24,213.25,213.07,3.6930599]
[1758596615399,7.24,213.25,213.07,69.3382599]
[1758596615804,7.24,213.25,213.11,3.6930599]
[1758596616304,7.24,213.25,213.12,4.219]
[1758596616504,7.24,213.25,213.11,3.6930599]
[1758596618105,11.4566,213.25,213.11,7.9122599]
[1758596618607,7.24,213.25,213.13,4.2188]
[1758596618811,7.24,213.25,213.11,3.6930599]
[1758596619207,4.216,213.28,213.01,66.19858355]
[1758596619208,4.2176,213.2,213.04,7.9135599]
[1758596619408,4.2176,213.2,213.04,3.6930599]
[1758596619911,4.218,213.18,213.04,3.6930599]
[1758596620104,7.24,213.22,213.04,3.6930599]
[1758596620406,7.24,213.22,213.08,3.6930599]
[1758596620809,7.24,213.22,213.09,4.2196]
[1758596621007,7.24,213.22,213.08,3.6930599]
[1758596621203,4.2175,213.2,213.06,7.9132599]
[1758596621399,7.24,213.2,213.02,3.6930599]
[1758596621604,7.24,213.2,213.01,65.6637]
[1758596621605,7.24,213.2,213.06,3.6930599]
[1758596622307,7.24,213.2,213.1,3.6930599]
[1758596623404,7.24,213.2,213.1,7.9124599]
[1758596623913,7.24,213.2,213.12,4.219]
[1758596624116,7.24,213.28,213.14,3.6930599]
[1758596624406,4.2161,213.27,213.14,7.9116599]
[1758596625012,7.24,213.23,213.08,4.2197]
[1758596625206,7.24,213.23,213.07,69.3381599]
[1758596625410,7.24,213.23,213.07,3.6930599]
[1758596625708,4.2173,213.21,213.09,4.2196]
[1758596625911,7.24,213.23,213.09,4.2196]
[1758596626316,4.2175,213.2,213.07,3.6930599]
[1758596626516,7.24,213.19,213.01,69.3554599]
[1758596626714,7.24,213.19,213.04,65.6532]
[1758596627106,7.24,213.19,213.03,3.6930599]
[1758596627713,11.4577,213.19,213.06,4.2202]
[1758596628009,7.24,213.19,213.03,3.6930599]
[1758596628209,7.24,213.14,212.98,65.6729]
[1758596628713,7.24,213.14,213.0,65.6653]
[1758596628913,7.24,213.14,213.01,3.6930599]
[1758596629607,7.24,213.14,213.03,4.2208]
[1758596630112,7.24,213.14,213.01,69.3569599]
[1758596630317,7.24,213.14,213.01,3.6930599]
[1758596630905,7.24,213.14,212.97,69.3692599]
[1758596631213,11.4587,213.14,213.01,3.6930599]
[1758596631404,72.8758,213.11,212.91,65.6947]
[1758596631608,65.6373,213.1,212.93,3.6930599]
[1758596632416,65.6438,213.08,212.93,3.6930599]
[1758596632606,65.6492,213.06,212.93,3.6930599]
[1758596632803,7.24,213.05,212.93,3.6930599]
[1758596633515,4.2194,213.11,212.97,3.6930599]
[1758596633714,11.4594,213.11,212.97,3.6930599]
[1758596633909,7.24,213.11,212.97,3.6930599]
[1758596634116,4.2201,213.07,212.97,3.6930599]
[1758596634511,7.24,213.11,212.98,4.2218]
[1758596636208,7.24,213.11,213.0,4.2214]
[1758596636412,7.24,213.11,213.01,3.6930599]
[1758596636715,7.24,213.11,212.97,69.3690599]
[1758596637024,7.24,213.11,212.95,65.6816]
[1758596637025,7.24,213.11,212.98,3.6930599]
[1758596637415,7.24,213.11,212.99,4.2216]
[1758596637614,7.24,213.11,212.98,3.6930599]
[1758596637918,7.24,213.11,213.0,50.0]
[1758596638719,7.24,213.11,213.01,4.2211]
[1758596638911,7.24,213.17,213.01,65.6643]
[1758596639111,7.24,213.17,213.02,3.6930599]
[1758596639322,7.24,213.17,213.04,65.6548]
[1758596639522,7.24,213.17,213.07,3.6930599]
[1758596640414,7.38,213.22,213.08,65.6426]
[1758596640621,7.38,213.27,213.12,65.63]
[1758596640917,7.38,213.27,213.15,69.3137599]
[1758596641119,5.06742804,213.38,213.19,3.6930599]
[1758596641321,7.38,213.33,213.19,3.6930599]
[1758596642017,65.566,213.33,213.15,4.2184]
[1758596642216,7.38,213.3,213.14,3.6930599]
[1758596642414,7.38,213.3,213.16,65.6181]
[1758596642719,65.5816,213.28,213.1,3.6930599]
[1758596642917,7.38,213.27,213.1,69.3292599]
[1758596643315,7.38,213.27,213.15,65.6211]
[1758596643511,7.38,213.27,213.14,3.6930599]
[1758596643920,7.38,213.27,213.15,4.2184]
[1758596645314,7.38,213.27,213.12,7.9120599]
[1758596645519,7.38,213.23,213.09,3.6930599]
[1758596645920,77.194,213.23,213.09,3.6930599]
[1758596646224,65.6005,213.22,213.05,3.6930599]
[1758596646424,7.38,213.21,213.05,3.6930599]
[1758596646715,7.38,213.21,213.06,65.6483]
[1758596647121,7.38,213.21,213.07,4.2199]
[1758596647725,7.38,213.26,213.13,3.6930599]
[1758596648112,7.38,213.26,213.11,3.6930599]
[1758596648317,77.1841,213.26,213.11,3.6930599]
[1758596649020,77.1841,213.26,213.11,73.5454599]
[1758596649021,11.5964,213.26,213.11,73.5454599]
[1758596649418,7.38,213.26,213.13,4.2187]
[1758596650719,65.5635,213.34,213.13,4.2187]
[1758596650720,7.38,213.33,213.19,3.6930599]
[1758596650927,7.38,213.33,213.17,65.6148]
[1758596651126,7.38,213.33,213.17,69.3078599]
[1758596651424,7.38,213.33,213.21,65.6028]
[1758596651814,7.38,213.33,213.2,4.2174]
[1758596652226,7.38,213.33,213.23,65.5965]
[1758596653123,7.38,213.33,213.18,69.3026599]
[1758596653620,7.38,213.31,213.18,4.2178]
[1758596654216,7.38,213.31,213.2,4.2174]
[1758596654428,7.38,213.31,213.19,65.6082]
[1758596654622,7.38,213.31,213.2,65.6057]
[1758596654828,7.38,213.31,213.22,4.217]
[1758596655030,7.38,213.37,213.22,65.599]
[1758596655724,7.38,213.37,213.24,4.2166]
[1758596655928,7.38,213.37,213.2,69.2987599]
[1758596656720,7.38,213.37,213.23,4.2169]
[1758596657421,11.5942,213.37,213.2,3.6930599]
[1758596657624,7.38,213.37,213.21,65.6026]
[1758596658022,7.38,213.37,213.24,4.2166]
[1758596659131,7.38,213.37,213.25,65.5896]
[1758596659331,7.38,213.37,213.23,69.2885599]
[1758596659530,7.38,213.37,213.22,3.6930599]
[1758596660130,7.38,213.37,213.22,69.2921599]
[1758596660832,7.38,213.37,213.25,65.5895]
[1758596661832,7.38,213.37,213.27,4.216]
[1758596662033,7.38,213.37,213.22,3.6930599]
[1758596662627,7.38,213.37,213.24,4.2166]
[1758596663130,7.38,213.37,213.15,131.2399]
[1758596663131,7.12,213.31,213.18,4.2178]
[1758596663826,65.5782,213.29,213.1,71.5100273]
[1758596664129,65.5782,213.29,213.03,65.6572]
[1758596664130,65.5998,213.22,213.03,65.6572]
[1758596664328,7.12,213.19,213.02,65.6612]
[1758596664632,7.12,213.19,213.04,65.6547]
[1758596664833,11.3378,213.19,213.01,65.6634]
[1758596665035,11.3378,213.19,213.03,65.6582]
[1758596665528,7.12,213.16,212.99,65.6696]
[1758596665731,7.12,213.16,213.01,65.6639]
[1758596666232,7.12,213.16,213.03,4.2207]
[1758596666429,7.12,213.16,212.99,65.6696]
[1758596666628,7.12,213.16,213.03,65.658]
[1758596666828,7.12,213.16,213.06,4.2202]
[1758596667331,7.12,213.16,213.03,65.658]
[1758596667332,7.12,213.16,213.02,69.8821]
[1758596667526,7.12,213.16,213.02,65.6612]
[1758596667727,7.12,213.16,213.03,65.6582]
[1758596668435,7.12,213.16,213.04,4.2206]
[1758596668928,7.12,213.16,213.01,4.2212]
[1758596669636,7.12,213.11,213.0,50.0]
[1758596671222,7.3,213.2,213.0,115.6674]
[1758596671427,11.5175,213.2,213.02,4.2209]
[1758596671631,7.3,213.2,213.05,65.6518]
[1758596672029,65.6046,213.21,213.02,65.661]
[1758596672227,7.3,213.2,213.03,65.6579]
[1758596672429,7.3,213.2,213.05,65.652]
[1758596672633,7.3,213.19,213.05,4.2203]
[1758596673230,4.218,213.18,213.05,4.2203]
[1758596673427,71.4958273,213.15,213.0,50.0]
[1758596673828,7.3,213.14,213.0,50.0]
[1758596674031,71.4958273,213.15,213.0,50.0]
[1758596674232,7.3,213.11,213.0,50.0]
[1758596674636,7.3,213.11,213.01,4.2212]
[1758596675732,7.3,213.11,213.03,4.2208]
[1758596675934,7.3,213.23,213.05,65.6509]
[1758596676133,7.3,213.22,213.05,65.6509]
[1758596676529,11.5172,213.22,213.02,65.6591]
[1758596676733,7.3,213.21,213.04,65.6549]
[1758596677339,7.3,213.19,213.05,4.2204]
[1758596677940,7.3,213.19,213.07,4.22]
[1758596678439,7.3,213.19,213.04,65.6549]
[1758596678440,65.612,213.18,213.03,4.2207]
[1758596678742,7.3,213.17,213.03,4.2207]
[1758596679436,7.3,213.12,213.0,50.0]
[1758596680140,7.3,213.12,213.01,4.2212]
[1758596680338,7.3,213.12,213.0,50.0]
[1758596680538,4.2198,213.09,213.0,50.0]